fUSD/lending_fUSD_20240116
["ID","MTS","AMOUNT","RATE_DAILY","PERIOD"]
[311782154,1705387850444,-500.0,0.00022418,2]
[311782155,1705387850453,-500.0,0.00022418,2]
[311782156,1705387850463,-500.0,0.00022418,2]
[311782157,1705387850473,-500.0,0.00022418,2]
[311782158,1705387850482,-500.0,0.00022418,2]
[311782159,1705387850491,-856.62,0.00022418,2]
[311782160,1705387850501,-500.0,0.00022418,2]
[311782161,1705387850510,-588.06,0.00022418,2]
[311782162,1705387850519,-633.99,0.00022418,2]
[311782163,1705387850529,-500.0,0.00022418,2]
[311782164,1705387850538,-500.0,0.00022418,2]
[311782165,1705387850548,-500.0,0.00022418,2]
[311782166,1705387850558,-500.0,0.00022418,2]
[311782167,1705387850568,-500.0,0.00022418,2]
[311782168,1705387850577,-500.0,0.00022418,2]
[311782169,1705387850586,-680.94,0.00022418,2]
[311782170,1705387850595,-500.0,0.00022418,2]
[311782171,1705387850605,-510.06,0.00022418,2]
[311782172,1705387850614,-500.0,0.00022418,2]
[311782173,1705387850623,-500.0,0.00022418,2]
[311782174,1705387850633,-500.0,0.00022418,2]
[311782175,1705387850642,-584.32,0.00022418,2]
[311782176,1705387850653,-500.0,0.00022418,2]
[311782177,1705387850667,-1744.0,0.00022418,2]
[311782178,1705387850676,-250.0,0.00022418,2]
[311782179,1705387850685,-847.65,0.00022418,2]
[311782180,1705387850694,-500.0,0.00022418,2]
[311782181,1705387850704,-500.0,0.00022418,2]
[311782182,1705387850713,-500.0,0.00022418,2]
[311782183,1705387850722,-500.0,0.00022418,2]
[311782184,1705387850732,-508.98,0.00022418,2]
[311782185,1705387850742,-500.0,0.00022418,2]
[311782186,1705387850751,-500.0,0.00022418,2]
[311782187,1705387850761,-500.0,0.00022418,2]
[311782188,1705387850771,-1898.03,0.00022418,2]
[311782189,1705387850781,-500.0,0.00022418,2]
[311782190,1705387850791,-348.94443941,0.00022418,2]
[311782191,1705387850800,-671.01,0.00022418,2]
[311782192,1705387850809,-500.0,0.00022418,2]
[311782193,1705387850819,-500.0,0.00022418,2]
[311782194,1705387850829,-500.0,0.00022418,2]
[311782195,1705387850838,-500.0,0.00022418,2]
[311782196,1705387850847,-500.0,0.00022418,2]
[311782197,1705387850857,-1159.9,0.00022418,2]
[311782198,1705387850866,-500.0,0.00022418,2]
[311782199,1705387850876,-500.0,0.00022418,2]
[311782200,1705387850885,-500.0,0.00022418,2]
[311782201,1705387850896,-500.0,0.00022418,2]
[311782202,1705387850905,-604.63,0.00022418,2]
[311782203,1705387850915,-534.28,0.00022418,2]
[311782204,1705387850924,-500.0,0.00022418,2]
[311782205,1705387850940,-657.11,0.00022418,2]
[311782206,1705387850954,-500.0,0.00022418,2]
[311782207,1705387850963,-500.0,0.00022418,2]
[311782208,1705387850973,-500.0,0.00022418,2]
[311782209,1705387850983,-500.0,0.00022418,2]
[311782210,1705387850993,-500.0,0.00022418,2]
[311782211,1705387851003,-500.0,0.00022418,2]
[311782212,1705387851013,-500.0,0.00022418,2]
[311782213,1705387851022,-683.28,0.00022418,2]
[311782214,1705387851031,-500.0,0.00022418,2]
[311782215,1705387851040,-564.65,0.00022418,2]
[311782216,1705387851050,-973.15,0.00022418,2]
[311782217,1705387851060,-1112.39,0.00022418,2]
[311782218,1705387851070,-1164.97,0.00022418,2]
[311782219,1705387851079,-500.0,0.00022418,2]
[311782220,1705387851091,-500.0,0.00022418,2]
[311782221,1705387851101,-528.57,0.00022418,2]
[311782222,1705387851110,-500.0,0.00022418,2]
[311782223,1705387851120,-500.0,0.00022418,2]
[311782224,1705387851129,-500.0,0.00022418,2]
[311782225,1705387851139,-500.0,0.00022418,2]
[311782226,1705387851149,-500.0,0.00022418,2]
[311782227,1705387851158,-500.0,0.00022418,2]
[311782228,1705387851167,-500.0,0.00022418,2]
[311782229,1705387851176,-816.22,0.00022418,2]
[311782230,1705387851186,-881.48,0.00022418,2]
[311782231,1705387851195,-500.0,0.00022418,2]
[311782232,1705387851205,-4182.44,0.00022418,2]
[311782233,1705387851214,-557.14,0.00022418,2]
[311782234,1705387851224,-500.0,0.00022418,2]
[311782235,1705387851234,-2072.98,0.00022418,2]
[311782236,1705387851243,-996.45,0.00022418,2]
[311782237,1705387851253,-500.0,0.00022418,2]
[311782238,1705387851263,-6403.61,0.00022418,2]
[311782239,1705387851273,-500.0,0.00022418,2]
[311782240,1705387851283,-640.13,0.00022418,2]
[311782241,1705387851293,-1853.66,0.00022418,2]
[311782242,1705387851303,-2100.19,0.00022418,2]
[311782243,1705387851313,-500.0,0.00022418,2]
[311782244,1705387851323,-828.5,0.00022418,2]
[311782245,1705387851332,-500.0,0.00022418,5]
[311782246,1705387851342,-2820.94,0.00022418,2]
[311782247,1705387851352,-500.0,0.00022418,2]
[311782248,1705387851362,-500.0,0.00022418,2]
[311782249,1705387851371,-500.0,0.00022418,2]
[311782250,1705387851381,-2810.06,0.00022418,2]
[311782251,1705387851391,-573.08,0.00022418,2]
[311782252,1705387851402,-560.94,0.00022418,2]
[311782253,1705387851411,-2149.3,0.00022418,2]
[311782254,1705387851590,-2783.63,0.00022418,2]
[311782255,1705387851600,-611.25,0.00022418,2]
[311782256,1705387851610,-2604.05,0.00022418,2]
[311782257,1705387851619,-636.87,0.00022418,2]
[311782258,1705387851628,-642.5,0.00022418,2]
[311782259,1705387851638,-752.67,0.00022418,2]
[311782260,1705387851648,-500.0,0.00022418,2]
[311782261,1705387851658,-1215.82,0.00022418,2]
[311782262,1705387851667,-500.0,0.00022418,2]
[311782263,1705387851676,-797.01,0.00022418,2]
[311782264,1705387851686,-912.22,0.00022418,2]
[311782265,1705387851697,-500.0,0.00022418,2]
[311782266,1705387851707,-897.18,0.00022418,2]
[311782267,1705387851717,-1098.02,0.00022418,2]
[311782268,1705387851731,-500.0,0.00022418,2]
[311782269,1705387851741,-500.0,0.00022418,2]
[311782270,1705387851750,-500.0,0.00022418,2]
[311782271,1705387851760,-1168.82,0.00022418,2]
[311782272,1705387851770,-637.86,0.00022418,2]
[311782273,1705387851780,-602.43,0.00022418,2]
[311782274,1705387851790,-667.71,0.00022418,2]
[311782275,1705387851799,-927.69,0.00022418,2]
[311782276,1705387851809,-3157.42,0.00022418,2]
[311782277,1705387851821,-4679.79,0.00022418,2]
[311782278,1705387851832,-3000.35,0.00022418,2]
[311782279,1705387851842,-500.0,0.00022418,2]
[311782280,1705387851851,-543.96,0.00022418,2]
[311782281,1705387851862,-685.72,0.00022418,2]
[311782282,1705387851873,-527.3,0.00022418,2]
[311782283,1705387851882,-1670.07,0.00022418,2]
[311782284,1705387851892,-561.88,0.00022418,2]
[311782285,1705387851903,-789.45,0.00022418,2]
[311782286,1705387851914,-1394.96,0.00022418,2]
[311782287,1705387851924,-500.0,0.00022418,2]
[311782288,1705387851934,-1569.53,0.00022418,2]
[311782289,1705387851945,-655.06,0.00022418,2]
[311782290,1705387851955,-830.02,0.00022418,2]
[311782291,1705387851965,-841.92,0.00022418,2]
[311782292,1705387851976,-4066.08,0.00022418,2]
[311782293,1705387851986,-500.0,0.00022418,2]
[311782294,1705387851996,-1246.0,0.00022418,2]
[311782295,1705387852005,-537.86,0.00022418,2]
[311782296,1705387852016,-574.26,0.00022418,2]
[311782297,1705387852026,-647.97,0.00022418,2]
[311782298,1705387852036,-500.0,0.00022418,2]
[311782299,1705387852046,-2914.24,0.00022418,2]
[311782300,1705387852056,-536.08,0.00022418,2]
[311782301,1705387852066,-760.96,0.00022418,2]
[311782302,1705387852076,-500.0,0.00022418,2]
[311782303,1705387852089,-500.0,0.00022418,2]
[311782304,1705387852098,-939.29,0.00022418,2]
[311782305,1705387852108,-613.98,0.00022418,2]
[311782306,1705387852120,-640.0,0.00022418,2]
[311782307,1705387852130,-500.0,0.00022419,2]
[311782308,1705387852141,-160.31807277,0.00022419,2]
[311782309,1705387852151,-500.0,0.00022419,2]
[311782310,1705387852162,-1523.77,0.00022419,2]
[311782311,1705387852172,-716.96,0.00022419,2]
[311782312,1705387852182,-552.79,0.00022419,2]
[311782313,1705387852192,-500.0,0.00022419,2]
[311782314,1705387852201,-566.67,0.00022419,2]
[311782315,1705387852211,-500.0,0.00022419,2]
[311782316,1705387852221,-519.73,0.00022419,2]
[311782317,1705387852230,-500.0,0.00022419,2]
[311782318,1705387852240,-1226.17,0.00022419,2]
[311782319,1705387852250,-500.0,0.00022419,2]
[311782320,1705387852260,-500.0,0.00022419,2]
[311782321,1705387852271,-500.0,0.00022419,2]
[311782322,1705387852281,-500.0,0.00022419,2]
[311782323,1705387852291,-500.0,0.00022419,2]
[311782324,1705387852300,-591.55,0.00022419,2]
[311782325,1705387852310,-589.26,0.00022419,2]
[311782326,1705387852321,-500.0,0.00022419,2]
[311782327,1705387852331,-500.0,0.00022419,2]
[311782328,1705387852341,-966.82,0.00022419,2]
[311782329,1705387852353,-916.08,0.00022419,2]
[311782330,1705387852363,-500.0,0.00022419,2]
[311782331,1705387852373,-504.12,0.00022419,2]
[311782332,1705387852382,-903.62,0.00022419,2]
[311782333,1705387852392,-722.38,0.00022419,2]
[311782334,1705387852402,-746.72,0.00022419,2]
[311782335,1705387852411,-565.0,0.00022419,2]
[311782336,1705387852421,-751.26,0.00022419,2]
[311782337,1705387852430,-559.21,0.00022419,2]
[311782338,1705387852440,-500.0,0.00022419,2]
[311782339,1705387852450,-653.4,0.00022419,2]
[311782340,1705387852460,-500.0,0.00022419,2]
[311782341,1705387852470,-500.37,0.00022419,2]
[311782342,1705387852480,-500.0,0.00022419,2]
[311782343,1705387852490,-865.77,0.00022419,2]
[311782344,1705387852499,-643.98,0.00022419,2]
[311782345,1705387852509,-500.0,0.00022419,2]
[311782346,1705387852519,-500.0,0.00022419,2]
[311782347,1705387852528,-576.92,0.00022419,2]
[311782348,1705387852538,-566.39,0.00022419,2]
[311782349,1705387852552,-500.0,0.00022419,2]
[311782350,1705387852562,-640.74,0.00022419,2]
[311782351,1705387852571,-500.0,0.00022419,2]
[311782352,1705387852581,-500.0,0.00022419,2]
[311782353,1705387852591,-903.97,0.00022419,2]
[311782354,1705387852602,-533.66,0.00022419,2]
[311782355,1705387852612,-2237.3,0.00022419,2]
[311782356,1705387852622,-503.59,0.00022419,2]
[311782357,1705387852632,-810.73,0.00022419,2]
[311782358,1705387852641,-1055.25,0.00022419,2]
[311782359,1705387852652,-826.73,0.00022419,2]
[311782360,1705387852662,-500.0,0.00022419,2]
[311782361,1705387852672,-619.73,0.00022419,2]
[311782362,1705387852681,-500.0,0.00022419,2]
[311782363,1705387852691,-500.0,0.00022419,2]
[311782364,1705387852701,-500.0,0.00022419,2]
[311782365,1705387852711,-526.31,0.00022419,2]
[311782366,1705387852721,-2009.51,0.00022419,2]
[311782367,1705387852731,-509.44,0.00022419,2]
[311782368,1705387852741,-734.31,0.00022419,2]
[311782369,1705387852751,-500.0,0.00022419,2]
[311782370,1705387852766,-662.27,0.00022419,2]
[311782371,1705387852776,-500.0,0.00022419,2]
[311782372,1705387852786,-844.44,0.00022419,2]
[311782373,1705387852796,-982.05,0.00022419,2]
[311782374,1705387852806,-656.14,0.00022419,2]
[311782375,1705387852816,-934.64,0.00022419,2]
[311782376,1705387852828,-787.16,0.00022419,2]
[311782377,1705387852838,-580.33,0.00022419,2]
[311782378,1705387852849,-745.75,0.00022419,2]
[311782379,1705387852859,-929.53,0.00022419,2]
[311782380,1705387852870,-1254.41,0.00022419,2]
[311782381,1705387852880,-607.5,0.00022419,2]
[311782382,1705387852891,-919.41,0.00022419,2]
[311782383,1705387852904,-929.19,0.00022419,2]
[311782384,1705387852914,-520.36,0.00022419,2]
[311782385,1705387852924,-762.4,0.00022419,2]
[311782386,1705387852934,-1439.19,0.00022419,2]
[311782387,1705387852943,-500.0,0.00022419,2]
[311782388,1705387852953,-2507.0,0.00022419,2]
[311782389,1705387852964,-688.64,0.00022419,2]
[311782390,1705387852974,-824.35,0.00022419,2]
[311782391,1705387852984,-523.25,0.00022419,2]
[311782392,1705387852994,-3076.21,0.00022419,2]
[311782393,1705387853004,-2198.91,0.00022419,2]
[311782394,1705387853013,-13903.15,0.00022419,2]
[311782395,1705387853023,-500.0,0.00022419,2]
[311782396,1705387853034,-2224.74,0.00022419,2]
[311782397,1705387853043,-536.54,0.00022419,2]
[311782398,1705387853054,-819.34,0.00022419,2]
[311782399,1705387853063,-909.1,0.00022419,2]
[311782400,1705387853074,-500.0,0.0002242,2]
[311782401,1705387853086,-500.0,0.0002242,2]
[311782402,1705387853096,-500.0,0.0002242,2]
[311782403,1705387853105,-500.0,0.0002242,2]
[311782404,1705387853115,-500.0,0.0002242,2]
[311782405,1705387853125,-500.0,0.0002242,2]
[311782406,1705387853135,-500.0,0.0002242,2]
[311782407,1705387853146,-500.0,0.0002242,2]
[311782408,1705387853160,-500.0,0.0002242,2]
[311782409,1705387853171,-500.0,0.0002242,2]
[311782410,1705387853181,-500.0,0.0002242,2]
[311782411,1705387853190,-500.0,0.0002242,2]
[311782412,1705387853200,-500.0,0.0002242,2]
[311782413,1705387853210,-500.0,0.0002242,2]
[311782414,1705387853219,-500.0,0.0002242,2]
[311782415,1705387853229,-500.0,0.0002242,2]
[311782416,1705387853241,-500.0,0.0002242,2]
[311782417,1705387853251,-530.31,0.0002242,2]
[311782418,1705387853261,-536.68,0.0002242,2]
[311782419,1705387853272,-500.0,0.0002242,2]
[311782420,1705387853282,-500.0,0.0002242,2]
[311782421,1705387853292,-574.55,0.0002242,2]
[311782422,1705387853302,-500.0,0.0002242,2]
[311782423,1705387853311,-500.0,0.0002242,2]
[311782424,1705387853321,-1385.06,0.0002242,2]
[311782425,1705387853330,-508.04,0.0002242,2]
[311782426,1705387853340,-300.0,0.0002242,2]
[311782427,1705387853350,-518.74,0.0002242,2]
[311782428,1705387853360,-500.0,0.0002242,2]
[311782429,1705387853370,-659.71,0.0002242,2]
[311782430,1705387853380,-500.0,0.0002242,2]
[311782431,1705387853390,-500.0,0.0002242,2]
[311782432,1705387853403,-519.67,0.0002242,2]
[311782433,1705387853412,-619.36,0.0002242,2]
[311782434,1705387853422,-500.0,0.0002242,2]
[311782435,1705387853431,-526.1,0.0002242,2]
[311782436,1705387853440,-700.35,0.0002242,2]
[311782437,1705387853450,-500.0,0.0002242,2]
[311782438,1705387853459,-500.0,0.0002242,2]
[311782439,1705387853468,-716.14,0.0002242,2]
[311782440,1705387853478,-500.0,0.0002242,2]
[311782441,1705387853492,-500.0,0.0002242,2]
[311782442,1705387853502,-500.0,0.0002242,2]
[311782443,1705387853512,-500.0,0.0002242,2]
[311782444,1705387853522,-500.0,0.0002242,2]
[311782445,1705387853532,-500.0,0.0002242,2]
[311782446,1705387853542,-500.0,0.0002242,2]
[311782447,1705387853551,-500.0,0.0002242,2]
[311782448,1705387853562,-500.0,0.0002242,2]
[311782449,1705387853571,-500.0,0.0002242,2]
[311782450,1705387853581,-500.0,0.0002242,2]
[311782451,1705387853590,-568.16,0.0002242,2]
[311782452,1705387853600,-500.0,0.0002242,2]
[311782453,1705387853610,-500.0,0.0002242,2]
[311782454,1705387853620,-509.95,0.0002242,2]
[311782455,1705387853629,-500.0,0.0002242,2]
[311782456,1705387853639,-500.0,0.0002242,2]
[311782457,1705387853653,-653.65,0.0002242,2]
[311782458,1705387853662,-500.0,0.0002242,2]
[311782459,1705387853672,-500.0,0.0002242,2]
[311782460,1705387853683,-364.10149841,0.0002242,2]
[311782461,1705387853693,-500.0,0.0002242,2]
[311782462,1705387853703,-623.72,0.0002242,2]
[311782463,1705387853713,-500.0,0.0002242,2]
[311782464,1705387853723,-500.0,0.0002242,2]
[311782465,1705387853733,-500.0,0.0002242,2]
[311782466,1705387853743,-509.73,0.0002242,2]
[311782467,1705387853753,-756.12,0.0002242,2]
[311782468,1705387853763,-500.0,0.0002242,2]
[311782469,1705387854151,-500.0,0.0002242,2]
[311782470,1705387854176,-500.0,0.0002242,2]
[311782471,1705387854187,-500.0,0.0002242,2]
[311782472,1705387854197,-500.0,0.0002242,2]
[311782473,1705387854207,-500.0,0.0002242,2]
[311782474,1705387854216,-500.0,0.0002242,2]
[311782475,1705387854226,-500.0,0.0002242,2]
[311782476,1705387854236,-500.0,0.0002242,2]
[311782477,1705387854245,-500.0,0.0002242,2]
[311782478,1705387854256,-538.79,0.0002242,2]
[311782479,1705387854265,-500.0,0.0002242,2]
[311782480,1705387854274,-500.0,0.0002242,2]
[311782481,1705387854284,-914.45,0.0002242,2]
[311782482,1705387854293,-500.0,0.0002242,2]
[311782483,1705387854302,-541.05,0.0002242,2]
[311782484,1705387854312,-714.48,0.0002242,2]
[311782485,1705387854322,-500.0,0.0002242,2]
[311782486,1705387854333,-500.0,0.0002242,2]
[311782487,1705387854342,-500.0,0.0002242,2]
[311782488,1705387854352,-500.0,0.0002242,2]
[311782489,1705387854362,-500.0,0.0002242,2]
[311782490,1705387854371,-568.71,0.0002242,2]
[311782491,1705387854380,-500.0,0.0002242,2]
[311782492,1705387854390,-500.0,0.0002242,2]
[311782493,1705387854401,-500.0,0.0002242,2]
[311782494,1705387854410,-500.0,0.0002242,2]
[311782495,1705387854419,-500.0,0.0002242,2]
[311782496,1705387854429,-500.0,0.0002242,2]
[311782497,1705387854439,-545.27152662,0.0002242,2]
[311782498,1705387854449,-500.0,0.0002242,2]
[311782499,1705387854458,-500.0,0.0002242,2]
[311782500,1705387854471,-500.0,0.0002242,2]
[311782501,1705387854480,-500.0,0.0002242,2]
[311782502,1705387854490,-500.0,0.0002242,2]
[311782503,1705387854499,-902.86,0.0002242,2]
[311782504,1705387854508,-500.0,0.0002242,2]
[311782505,1705387854517,-500.0,0.0002242,2]
[311782506,1705387854527,-573.7,0.0002242,2]
[311782507,1705387854536,-11384.22451292,0.00022455,2]
[311782508,1705387854546,-154.69,0.00022457,2]
[311782509,1705387854556,-152.27,0.00022467,2]
[311782510,1705387854565,-464.85618213,0.00022473,2]
[311782511,1705387854575,-191.34264268,0.00022473,2]
[311782512,1705387854584,-505.43896749,0.00022473,2]
[311782513,1705387854594,-12294.16339703,0.000225,2]
[311782514,1705387854604,-329.17,0.000225,2]
[311782515,1705387854614,-294.22,0.000225,2]
[311782516,1705387854623,-1881.76,0.000225,2]
[311782517,1705387854633,-150.0,0.000225,2]
[311782518,1705387854643,-150.0,0.000225,2]
[311782519,1705387854653,-889.61,0.000225,2]
[311782520,1705387854662,-154.19,0.00022505,2]
[311782521,1705387854672,-699.0,0.00022509,7]
[311782522,1705387854682,-444.0,0.00022509,7]
[311782523,1705387854691,-534.0,0.00022509,7]
[311782524,1705387854702,-159.02,0.00022511,2]
[311782525,1705387854711,-11384.22451292,0.00022518,2]
[311782526,1705387854721,-497.79925133,0.00022519,2]
[311782527,1705387854731,-175.95557798,0.00022551,6]
[311782528,1705387854741,-11384.22451292,0.00022582,2]
[311782529,1705387854750,-157.11,0.00022591,2]
[311782530,1705387854760,-3313.0,0.000226,2]
[311782531,1705387854770,-37367.0,0.000226,2]
[311782532,1705387854779,-1452.0,0.00022615,2]
[311782533,1705387854790,-11384.22451292,0.00022645,2]
[311782534,1705387854799,-497.79925133,0.00022646,2]
[311782535,1705387854809,-159.09,0.00022646,2]
[311782536,1705387854820,-511.67578181,0.00022647,2]
[311782537,1705387854829,-500.0,0.00022647,2]
[311782538,1705387854839,-500.0,0.00022647,2]
[311782539,1705387854848,-581.14,0.00022647,2]
[311782540,1705387854858,-273.35555813,0.00022647,2]
[311782541,1705387854869,-500.0,0.00022647,2]
[311782542,1705387854878,-500.0,0.00022647,2]
[311782543,1705387854888,-500.0,0.00022647,2]
[311782544,1705387854899,-500.0,0.00022647,2]
[311782545,1705387854909,-500.0,0.00022647,2]
[311782546,1705387854918,-500.0,0.00022647,2]
[311782547,1705387854927,-500.0,0.00022647,2]
[311782548,1705387854936,-621.75,0.00022647,2]
[311782549,1705387854945,-500.0,0.00022647,2]
[311782550,1705387854954,-500.0,0.00022647,2]
[311782551,1705387854964,-500.0,0.00022647,2]
[311782552,1705387854974,-500.0,0.00022647,2]
[311782553,1705387854985,-886.08,0.00022647,2]
[311782554,1705387854995,-449.42854464,0.00022647,2]
[311782555,1705387855004,-590.06920447,0.00022647,2]
[311782556,1705387855015,-500.0,0.00022647,2]
[311782557,1705387855024,-500.0,0.00022647,2]
[311782558,1705387855034,-3105.05,0.00022647,2]
[311782559,1705387855045,-500.0,0.00022647,2]
[311782560,1705387855054,-500.0,0.00022647,2]
[311782561,1705387855064,-1233.04,0.00022647,2]
[311782562,1705387855075,-500.0,0.00022647,2]
[311782563,1705387855087,-769.57,0.00022647,2]
[311782564,1705387855097,-500.0,0.00022647,2]
[311782565,1705387855107,-906.42,0.00022647,2]
[311782566,1705387855116,-500.0,0.00022647,2]
[311782567,1705387855125,-512.37,0.00022647,2]
[311782568,1705387855135,-500.0,0.00022647,2]
[311782569,1705387855144,-3080.29,0.00022647,2]
[311782570,1705387855154,-539.81,0.00022647,2]
[311782571,1705387855164,-500.0,0.00022647,2]
[311782572,1705387855173,-18071.95,0.00022647,2]
[311782573,1705387855183,-500.0,0.00022647,2]
[311782574,1705387855192,-1265.29,0.00022647,2]
[311782575,1705387855202,-500.0,0.00022647,2]
[311782576,1705387855212,-500.0,0.00022647,2]
[311782577,1705387855222,-696.31,0.00022647,2]
[311782578,1705387855231,-261.32334078,0.00022647,2]
[311782579,1705387855241,-500.0,0.00022647,2]
[311782580,1705387855251,-1341.07,0.00022647,2]
[311782581,1705387855261,-500.0,0.00022647,2]
[311782582,1705387855270,-500.0,0.00022647,2]
[311782583,1705387855280,-2646.14,0.00022647,2]
[311782584,1705387855289,-861.7,0.00022647,2]
[311782585,1705387855299,-500.0,0.00022647,2]
[311782586,1705387855308,-500.0,0.00022647,2]
[311782587,1705387855318,-1190.13,0.00022647,2]
[311782588,1705387855329,-1099.92,0.00022647,2]
[311782589,1705387855338,-500.0,0.00022647,2]
[311782590,1705387855349,-500.0,0.00022647,2]
[311782591,1705387855358,-817.16,0.00022647,2]
[311782592,1705387855368,-504.73,0.00022647,2]
[311782593,1705387855378,-500.0,0.00022647,2]
[311782594,1705387855388,-749.0,0.00022647,2]
[311782595,1705387855397,-500.0,0.00022647,2]
[311782596,1705387855406,-863.21,0.00022647,2]
[311782597,1705387855416,-500.0,0.00022647,2]
[311782598,1705387855425,-500.0,0.00022647,2]
[311782599,1705387855435,-500.0,0.00022647,2]
[311782600,1705387855444,-500.0,0.00022647,2]
[311782601,1705387855455,-596.54,0.00022647,2]
[311782602,1705387855464,-500.0,0.00022647,2]
[311782603,1705387855474,-500.0,0.00022647,2]
[311782604,1705387855483,-9954.01,0.00022647,2]
[311782605,1705387855493,-500.0,0.00022647,2]
[311782606,1705387855502,-2116.85,0.00022647,2]
[311782607,1705387855512,-1333.82,0.00022647,2]
[311782608,1705387855522,-587.59,0.00022647,2]
[311782609,1705387855532,-500.0,0.00022647,2]
[311782610,1705387855542,-751.99,0.00022647,2]
[311782611,1705387855551,-500.0,0.00022647,2]
[311782612,1705387855561,-500.0,0.00022647,2]
[311782613,1705387855571,-500.0,0.00022647,2]
[311782614,1705387855581,-1007.96,0.00022647,2]
[311782615,1705387855592,-500.0,0.00022647,2]
[311782616,1705387855601,-943.73,0.00022647,2]
[311782617,1705387855611,-500.0,0.00022647,2]
[311782618,1705387855620,-500.0,0.00022647,2]
[311782619,1705387855630,-500.0,0.00022647,2]
[311782620,1705387855640,-1009.35,0.00022647,2]
[311782621,1705387855651,-868.38,0.00022647,2]
[311782622,1705387855662,-500.0,0.00022647,2]
[311782623,1705387855672,-972.97,0.00022647,2]
[311782624,1705387855682,-500.0,0.00022647,2]
[311782625,1705387855692,-500.0,0.00022647,2]
[311782626,1705387855703,-500.0,0.00022647,2]
[311782627,1705387855714,-3142.85,0.00022647,2]
[311782628,1705387855724,-500.0,0.00022647,2]
[311782629,1705387855734,-1140.48,0.00022647,2]
[311782630,1705387855744,-1260.95,0.00022647,2]
[311782631,1705387855754,-468.9790765,0.00022647,2]
[311782632,1705387855763,-746.65,0.00022647,2]
[311782633,1705387855773,-500.0,0.00022647,2]
[311782634,1705387855783,-611.33,0.00022647,2]
[311782635,1705387855793,-500.0,0.00022647,2]
[311782636,1705387855802,-500.0,0.00022647,2]
[311782637,1705387855813,-1420.52,0.00022647,2]
[311782638,1705387855823,-557.65,0.00022647,2]
[311782639,1705387855832,-500.0,0.00022647,2]
[311782640,1705387855841,-526.7,0.00022647,2]
[311782641,1705387855852,-500.0,0.00022647,2]
[311782642,1705387855861,-2120.03,0.00022647,2]
[311782643,1705387855871,-529.34,0.00022647,2]
[311782644,1705387855880,-1713.48,0.00022647,2]
[311782645,1705387855890,-1155.36,0.00022647,2]
[311782646,1705387855900,-500.0,0.00022647,2]
[311782647,1705387855910,-151.0,0.00022647,7]
[311782648,1705387855919,-151.0,0.00022647,7]
[311782649,1705387855929,-151.0,0.00022647,7]
[311782650,1705387855939,-151.0,0.00022647,7]
[311782651,1705387855949,-151.0,0.00022647,7]
[311782652,1705387855960,-152.199543,0.00022647,7]
[311782653,1705387855970,-151.0,0.00022647,7]